[Event "*** SCC Grand Prix: Titled Tuesday Blitz"]
[Site "Chess.com"]
[Date "2020.06.09"]
[Round "4"]
[White "earling8018"]
[Black "Haapana"]
[Result "1-0"]
[WhiteElo "2078"]
[BlackElo "2390"]
[TimeControl "180+1"]
[EndTime "9:39:30 PDT"]
[Termination "earling8018 won on time"]

1. d4 {[%clk 0:03:00.9]} 1... Nf6 {[%clk 0:02:57.2]} 2. c4 {[%clk 0:03:01.2]}
2... g6 {[%clk 0:02:50.9]} 3. Nc3 {[%clk 0:03:00.6]} 3... Bg7 {[%clk 0:02:51.2]}
4. e4 {[%clk 0:02:59.8]} 4... d6 {[%clk 0:02:51.6]} 5. Nf3 {[%clk 0:02:59.8]}
5... Bg4 {[%clk 0:02:51.3]} 6. Be2 {[%clk 0:02:56.4]} 6... Nfd7 {[%clk
0:02:51.7]} 7. Be3 {[%clk 0:02:53.8]} 7... c5 {[%clk 0:02:52.1]} 8. h3 {[%clk
0:02:46.4]} 8... Bxf3 {[%clk 0:02:49.5]} 9. Bxf3 {[%clk 0:02:46.5]} 9... Nc6
{[%clk 0:02:48.4]} 10. Ne2 {[%clk 0:02:18.4]} 10... cxd4 {[%clk 0:02:29.7]} 11.
Nxd4 {[%clk 0:02:14.4]} 11... Nxd4 {[%clk 0:02:26.2]} 12. Bxd4 {[%clk
0:02:13.8]} 12... Qa5+ {[%clk 0:02:26.4]} 13. Kf1 {[%clk 0:02:12.6]} 13... Bxd4
{[%clk 0:02:22.8]} 14. Qxd4 {[%clk 0:02:12.3]} 14... Ne5 {[%clk 0:02:16.9]} 15.
Be2 {[%clk 0:02:08.8]} 15... O-O {[%clk 0:02:02.7]} 16. h4 {[%clk 0:02:08.7]}
16... h5 {[%clk 0:01:05.8]} 17. Rh3 {[%clk 0:02:01.6]} 17... Qc5 {[%clk
0:00:59.4]} 18. Rd1 {[%clk 0:01:47.1]} 18... Qxd4 {[%clk 0:00:58.1]} 19. Rxd4
{[%clk 0:01:46.9]} 19... Rfc8 {[%clk 0:00:58.4]} 20. b3 {[%clk 0:01:32]} 20...
a5 {[%clk 0:00:35.4]} 21. f4 {[%clk 0:01:28.2]} 21... Nc6 {[%clk 0:00:32.9]} 22.
Rd2 {[%clk 0:01:27.9]} 22... a4 {[%clk 0:00:31.9]} 23. g4 {[%clk 0:01:25.1]}
23... hxg4 {[%clk 0:00:23.2]} 24. Bxg4 {[%clk 0:01:24.9]} 24... Rc7 {[%clk
0:00:19.1]} 25. h5 {[%clk 0:01:21.9]} 25... axb3 {[%clk 0:00:18.8]} 26. axb3
{[%clk 0:01:20.8]} 26... Ra1+ {[%clk 0:00:16.4]} 27. Kf2 {[%clk 0:01:19.3]}
27... b5 {[%clk 0:00:12.4]} 28. hxg6 {[%clk 0:01:15.1]} 28... fxg6 {[%clk
0:00:11.8]} 29. cxb5 {[%clk 0:01:11.2]} 29... Nb4 {[%clk 0:00:10.8]} 30. Be6+
{[%clk 0:00:48.8]} 30... Kg7 {[%clk 0:00:10.9]} 31. f5 {[%clk 0:00:49.4]} 31...
Kf6 {[%clk 0:00:09.9]} 32. Rh6 {[%clk 0:00:45.6]} 32... Rcc1 {[%clk 0:00:09.3]}
33. Rxg6+ {[%clk 0:00:45]} 33... Ke5 {[%clk 0:00:09.6]} 34. Bc4 {[%clk
0:00:43.7]} 34... Kf4 {[%clk 0:00:08.2]} 35. b6 {[%clk 0:00:43]} 35... Rh1
{[%clk 0:00:07.5]} 36. b7 {[%clk 0:00:40.9]} 36... Nc6 {[%clk 0:00:06.4]} 37. b4
{[%clk 0:00:40.6]} 37... Ra7 {[%clk 0:00:02.9]} 38. Bd5 {[%clk 0:00:37.3]} 38...
Ne5 {[%clk 0:00:01.5]} 39. Rg1 {[%clk 0:00:34.2]} 1-0

[Event "*** SCC Grand Prix: Titled Tuesday Blitz"]
[Site "Chess.com"]
[Date "2020.06.09"]
[Round "4"]
[White "chito89"]
[Black "bsnsun"]
[Result "1-0"]
[WhiteElo "2736"]
[BlackElo "2457"]
[TimeControl "180+1"]
[EndTime "9:39:33 PDT"]
[Termination "chito89 won by resignation"]

1. e4 {[%clk 0:03:00.7]} 1... c5 {[%clk 0:02:59.3]} 2. Nc3 {[%clk 0:02:54.1]}
2... d6 {[%clk 0:02:56.6]} 3. f4 {[%clk 0:02:45.1]} 3... g6 {[%clk 0:02:51.7]}
4. Nf3 {[%clk 0:02:41.4]} 4... Nc6 {[%clk 0:02:49.3]} 5. Bb5 {[%clk 0:02:41.6]}
5... Bg7 {[%clk 0:02:47]} 6. O-O {[%clk 0:02:39.9]} 6... e6 {[%clk 0:02:23.3]}
7. d3 {[%clk 0:02:28.8]} 7... Ne7 {[%clk 0:02:22.5]} 8. Qe1 {[%clk 0:02:28.3]}
8... O-O {[%clk 0:02:20]} 9. Kh1 {[%clk 0:02:20.1]} 9... Nd4 {[%clk 0:02:18.7]}
10. Nxd4 {[%clk 0:02:15.4]} 10... cxd4 {[%clk 0:02:16.9]} 11. Ne2 {[%clk
0:02:14.9]} 11... Qc7 {[%clk 0:02:10.7]} 12. Ba4 {[%clk 0:02:09]} 12... e5
{[%clk 0:02:07.6]} 13. f5 {[%clk 0:01:56.3]} 13... gxf5 {[%clk 0:01:57.8]} 14.
Ng3 {[%clk 0:01:54.5]} 14... f4 {[%clk 0:01:49.6]} 15. Nh5 {[%clk 0:01:53]}
15... Ng6 {[%clk 0:01:46.3]} 16. g3 {[%clk 0:01:42.3]} 16... fxg3 {[%clk
0:01:11.7]} 17. Qxg3 {[%clk 0:01:36.8]} 17... f5 {[%clk 0:01:11.8]} 18. Bb3+
{[%clk 0:01:32.9]} 18... Kh8 {[%clk 0:01:12]} 19. exf5 {[%clk 0:01:20]} 19...
Bxf5 {[%clk 0:01:11.3]} 20. Bg5 {[%clk 0:01:15.6]} 20... e4 {[%clk 0:00:30.6]}
21. Nxg7 {[%clk 0:00:58.8]} 21... Kxg7 {[%clk 0:00:30.3]} 22. Bf4 {[%clk
0:00:31.1]} 22... Rad8 {[%clk 0:00:26.9]} 23. h4 {[%clk 0:00:31.3]} 23... Kh8
{[%clk 0:00:25.1]} 24. Bg5 {[%clk 0:00:32]} 24... Rde8 {[%clk 0:00:21.3]} 25.
dxe4 {[%clk 0:00:31.2]} 25... Bxe4+ {[%clk 0:00:21.3]} 26. Kh2 {[%clk
0:00:31.9]} 26... Qg7 {[%clk 0:00:16.2]} 27. Qxd6 {[%clk 0:00:30.5]} 27... Ne5
{[%clk 0:00:14.8]} 28. Be6 {[%clk 0:00:24.8]} 28... Nf3+ {[%clk 0:00:13.9]} 29.
Rxf3 {[%clk 0:00:23.2]} 29... Bxf3 {[%clk 0:00:13.6]} 30. Rg1 {[%clk 0:00:20]}
30... Be4 {[%clk 0:00:11.6]} 31. Bf4 {[%clk 0:00:18]} 31... Rxe6 {[%clk
0:00:06]} 32. Qxe6 {[%clk 0:00:17.1]} 32... Rf7 {[%clk 0:00:03.8]} 33. Rxg7
{[%clk 0:00:15.5]} 1-0

[Event "*** SCC Grand Prix: Titled Tuesday Blitz"]
[Site "Chess.com"]
[Date "2020.06.09"]
[Round "4"]
[White "Gromes7"]
[Black "Olga_Girya"]
[Result "0-1"]
[WhiteElo "2055"]
[BlackElo "2403"]
[TimeControl "180+1"]
[EndTime "9:39:36 PDT"]
[Termination "Olga_Girya won by resignation"]

1. d4 {[%clk 0:02:59.4]} 1... d5 {[%clk 0:02:59.5]} 2. Nf3 {[%clk 0:02:59.2]}
2... Nf6 {[%clk 0:02:59.2]} 3. g3 {[%clk 0:02:59.5]} 3... Bg4 {[%clk 0:02:54.7]}
4. Ne5 {[%clk 0:02:58.9]} 4... Bf5 {[%clk 0:02:49.2]} 5. Bg2 {[%clk 0:02:58.3]}
5... e6 {[%clk 0:02:46.3]} 6. c4 {[%clk 0:02:52]} 6... c6 {[%clk 0:02:46.5]} 7.
cxd5 {[%clk 0:02:51.1]} 7... exd5 {[%clk 0:02:42.4]} 8. Qb3 {[%clk 0:02:50.9]}
8... Qb6 {[%clk 0:02:39.1]} 9. Qxb6 {[%clk 0:02:24.9]} 9... axb6 {[%clk
0:02:38.7]} 10. Nc3 {[%clk 0:02:24.7]} 10... Nbd7 {[%clk 0:02:36.1]} 11. O-O
{[%clk 0:02:15.2]} 11... Bd6 {[%clk 0:02:33]} 12. Bf4 {[%clk 0:02:11.7]} 12...
Bb4 {[%clk 0:01:32]} 13. Nd1 {[%clk 0:01:23.2]} 13... O-O {[%clk 0:01:28.4]} 14.
a3 {[%clk 0:01:21.8]} 14... Be7 {[%clk 0:01:27.7]} 15. Ne3 {[%clk 0:01:21.3]}
15... Be6 {[%clk 0:01:25.1]} 16. Rac1 {[%clk 0:01:07.7]} 16... Nxe5 {[%clk
0:01:24.1]} 17. Bxe5 {[%clk 0:01:06.1]} 17... Nd7 {[%clk 0:01:22.1]} 18. Bf4
{[%clk 0:01:04.3]} 18... b5 {[%clk 0:01:21.9]} 19. Nc2 {[%clk 0:00:55.3]} 19...
Nb6 {[%clk 0:01:19.2]} 20. e4 {[%clk 0:00:46.4]} 20... dxe4 {[%clk 0:01:14.3]}
21. Bxe4 {[%clk 0:00:45.1]} 21... Nc4 {[%clk 0:01:08.7]} 22. Nb4 {[%clk
0:00:30.8]} 22... Nxb2 {[%clk 0:00:52.8]} 23. d5 {[%clk 0:00:30.8]} 23... Bxb4
{[%clk 0:00:46.2]} 24. axb4 {[%clk 0:00:28.4]} 24... cxd5 {[%clk 0:00:42.2]} 25.
Bf3 {[%clk 0:00:18.5]} 25... Nd3 {[%clk 0:00:41]} 26. Rc7 {[%clk 0:00:15.8]}
26... Nxf4 {[%clk 0:00:40.7]} 27. gxf4 {[%clk 0:00:16.7]} 27... Rab8 {[%clk
0:00:29.6]} 28. Rd1 {[%clk 0:00:15.5]} 28... Rfd8 {[%clk 0:00:22.6]} 29. Rd4
{[%clk 0:00:15.2]} 29... g6 {[%clk 0:00:19.7]} 30. Kf1 {[%clk 0:00:14.3]} 30...
Rd6 {[%clk 0:00:19.8]} 31. Ke2 {[%clk 0:00:14.1]} 31... Rc6 {[%clk 0:00:20.2]}
32. Re7 {[%clk 0:00:10.4]} 32... Rc2+ {[%clk 0:00:20.1]} 33. Ke1 {[%clk
0:00:07.3]} 33... Rc4 {[%clk 0:00:20]} 34. Rxc4 {[%clk 0:00:05.9]} 34... bxc4
{[%clk 0:00:19.9]} 35. Rc7 {[%clk 0:00:05.3]} 35... b6 {[%clk 0:00:20]} 36. b5
{[%clk 0:00:05.3]} 36... Ra8 {[%clk 0:00:19.9]} 37. Rc6 {[%clk 0:00:04.9]} 37...
Ra3 {[%clk 0:00:20.3]} 38. Be2 {[%clk 0:00:03.1]} 38... c3 {[%clk 0:00:20.2]}
39. Rxb6 {[%clk 0:00:02.7]} 39... Ra1+ {[%clk 0:00:20.5]} 40. Bd1 {[%clk
0:00:01.4]} 40... c2 {[%clk 0:00:20.9]} 0-1

[Event "*** SCC Grand Prix: Titled Tuesday Blitz"]
[Site "Chess.com"]
[Date "2020.06.09"]
[Round "4"]
[White "ehrenfeld"]
[Black "Rish_97"]
[Result "1-0"]
[WhiteElo "2513"]
[BlackElo "2687"]
[TimeControl "180+1"]
[EndTime "9:39:37 PDT"]
[Termination "ehrenfeld won by resignation"]

1. e4 {[%clk 0:03:00.9]} 1... c5 {[%clk 0:02:57.2]} 2. d3 {[%clk 0:03:00.2]}
2... Nc6 {[%clk 0:02:54.9]} 3. f4 {[%clk 0:03:00.2]} 3... g6 {[%clk 0:02:53.4]}
4. Nf3 {[%clk 0:03:00.2]} 4... Bg7 {[%clk 0:02:53.5]} 5. Be2 {[%clk 0:03:00.8]}
5... d6 {[%clk 0:02:51]} 6. O-O {[%clk 0:03:01.1]} 6... e6 {[%clk 0:02:50.5]} 7.
c3 {[%clk 0:03:00.7]} 7... Nge7 {[%clk 0:02:50.8]} 8. Be3 {[%clk 0:03:00.9]}
8... O-O {[%clk 0:02:51.2]} 9. d4 {[%clk 0:03:00.9]} 9... b6 {[%clk 0:02:47.4]}
10. Na3 {[%clk 0:02:58.2]} 10... Bb7 {[%clk 0:02:47]} 11. dxc5 {[%clk
0:02:56.7]} 11... dxc5 {[%clk 0:02:45.3]} 12. Qc2 {[%clk 0:02:56.5]} 12... a6
{[%clk 0:02:40.3]} 13. Nc4 {[%clk 0:02:52.4]} 13... Qc7 {[%clk 0:02:38.6]} 14.
a4 {[%clk 0:02:51.6]} 14... Rfd8 {[%clk 0:02:35.6]} 15. Qb3 {[%clk 0:02:47.9]}
15... Nc8 {[%clk 0:02:03]} 16. f5 {[%clk 0:02:47.2]} 16... exf5 {[%clk
0:01:53.7]} 17. exf5 {[%clk 0:02:46.6]} 17... Na5 {[%clk 0:01:32.5]} 18. Nxa5
{[%clk 0:02:40.3]} 18... bxa5 {[%clk 0:01:33.4]} 19. fxg6 {[%clk 0:02:31.6]}
19... hxg6 {[%clk 0:01:33.1]} 20. Ng5 {[%clk 0:02:19]} 20... Nd6 {[%clk
0:01:27.9]} 21. Rad1 {[%clk 0:01:26.3]} 21... c4 {[%clk 0:01:21.1]} 22. Qb6
{[%clk 0:01:22.1]} 22... Qe7 {[%clk 0:01:17.7]} 23. Rde1 {[%clk 0:00:27.8]}
23... Rab8 {[%clk 0:00:51.4]} 24. Qa7 {[%clk 0:00:23.5]} 24... Ra8 {[%clk
0:00:30.9]} 25. Qb6 {[%clk 0:00:23.1]} 25... Rab8 {[%clk 0:00:24]} 26. Qa7
{[%clk 0:00:22.9]} 26... Nf5 {[%clk 0:00:23.1]} 27. Bc1 {[%clk 0:00:16]} 27...
Ra8 {[%clk 0:00:21.5]} 28. Qf2 {[%clk 0:00:14.9]} 28... Qc7 {[%clk 0:00:09.8]}
29. g4 {[%clk 0:00:13.7]} 29... Nd6 {[%clk 0:00:07.6]} 30. Qh4 {[%clk 0:00:12]}
30... Qc5+ {[%clk 0:00:05.8]} 31. Rf2 {[%clk 0:00:10.4]} 31... Ne4 {[%clk
0:00:04.1]} 32. Qh7+ {[%clk 0:00:09]} 32... Kf8 {[%clk 0:00:04.6]} 33. Ne6+
{[%clk 0:00:05.3]} 33... Ke7 {[%clk 0:00:04.1]} 34. Nxc5 {[%clk 0:00:05.4]}
34... Nxc5 {[%clk 0:00:03.9]} 35. Bf3+ {[%clk 0:00:05.4]} 1-0

[Event "*** SCC Grand Prix: Titled Tuesday Blitz"]
[Site "Chess.com"]
[Date "2020.06.09"]
[Round "4"]
[White "cassoulet"]
[Black "boo786"]
[Result "1-0"]
[WhiteElo "2619"]
[BlackElo "2391"]
[TimeControl "180+1"]
[EndTime "9:39:37 PDT"]
[Termination "cassoulet won on time"]

1. e4 {[%clk 0:03:00.9]} 1... c5 {[%clk 0:02:58.5]} 2. Nf3 {[%clk 0:02:59.9]}
2... e6 {[%clk 0:02:58.6]} 3. d4 {[%clk 0:02:59.5]} 3... cxd4 {[%clk 0:02:58.7]}
4. Nxd4 {[%clk 0:03:00.4]} 4... Nc6 {[%clk 0:02:58.6]} 5. Nc3 {[%clk 0:03:00.8]}
5... Qc7 {[%clk 0:02:58.6]} 6. Be3 {[%clk 0:03:00.2]} 6... Nf6 {[%clk
0:02:57.8]} 7. Bd3 {[%clk 0:02:58.1]} 7... a6 {[%clk 0:02:56.2]} 8. O-O {[%clk
0:02:57.9]} 8... Be7 {[%clk 0:02:54.1]} 9. f4 {[%clk 0:02:55.1]} 9... d6 {[%clk
0:02:54.2]} 10. Qe1 {[%clk 0:02:51.1]} 10... b5 {[%clk 0:02:45.4]} 11. a3 {[%clk
0:02:50.3]} 11... Bb7 {[%clk 0:02:44.5]} 12. Qg3 {[%clk 0:02:49]} 12... O-O
{[%clk 0:02:35.7]} 13. Rae1 {[%clk 0:02:34.3]} 13... Rad8 {[%clk 0:01:52.9]} 14.
Kh1 {[%clk 0:02:21.4]} 14... Nxd4 {[%clk 0:01:34.7]} 15. Bxd4 {[%clk 0:02:20.4]}
15... e5 {[%clk 0:01:34.5]} 16. fxe5 {[%clk 0:02:08.7]} 16... Nh5 {[%clk
0:01:32.2]} 17. Qg4 {[%clk 0:01:50.3]} 17... dxe5 {[%clk 0:01:31.7]} 18. Be3
{[%clk 0:01:28.1]} 18... Nf6 {[%clk 0:01:09]} 19. Qh3 {[%clk 0:01:24.2]} 19...
Bc8 {[%clk 0:01:05.1]} 20. Qg3 {[%clk 0:01:20]} 20... Be6 {[%clk 0:00:58.5]} 21.
Bg5 {[%clk 0:00:51.3]} 21... Nh5 {[%clk 0:00:54.6]} 22. Qh4 {[%clk 0:00:50.4]}
22... Bxg5 {[%clk 0:00:54.4]} 23. Qxh5 {[%clk 0:00:43.6]} 23... Bd2 {[%clk
0:00:50.3]} 24. Nd5 {[%clk 0:00:32.7]} 24... Bxd5 {[%clk 0:00:31]} 25. exd5
{[%clk 0:00:32.6]} 25... g6 {[%clk 0:00:25]} 26. Qxe5 {[%clk 0:00:31.6]} 26...
Qd7 {[%clk 0:00:20.4]} 27. Rd1 {[%clk 0:00:29.9]} 27... Bh6 {[%clk 0:00:20]} 28.
c4 {[%clk 0:00:28.4]} 28... Bg7 {[%clk 0:00:19.8]} 29. Qe2 {[%clk 0:00:27.9]}
29... bxc4 {[%clk 0:00:19.5]} 30. Bxc4 {[%clk 0:00:28.1]} 30... a5 {[%clk
0:00:20.1]} 31. b3 {[%clk 0:00:25.4]} 31... Qd6 {[%clk 0:00:19.5]} 32. a4 {[%clk
0:00:24.9]} 32... Rde8 {[%clk 0:00:18.1]} 33. Qd2 {[%clk 0:00:24.4]} 33... Re5
{[%clk 0:00:17.3]} 34. Qxa5 {[%clk 0:00:24.2]} 34... h5 {[%clk 0:00:15.3]} 35.
Qa7 {[%clk 0:00:24.2]} 35... h4 {[%clk 0:00:14.2]} 36. h3 {[%clk 0:00:24.3]}
36... Rg5 {[%clk 0:00:12.9]} 37. Rf2 {[%clk 0:00:22.3]} 37... Qg3 {[%clk
0:00:12.3]} 38. Re2 {[%clk 0:00:17.4]} 38... Be5 {[%clk 0:00:11.5]} 39. Qg1
{[%clk 0:00:17.8]} 39... Bd6 {[%clk 0:00:09]} 40. Rd3 {[%clk 0:00:17.6]} 40...
Qf4 {[%clk 0:00:08]} 41. Rf3 {[%clk 0:00:17.8]} 41... Qd4 {[%clk 0:00:07.4]} 42.
Qxd4 {[%clk 0:00:17.5]} 1-0

[Event "*** SCC Grand Prix: Titled Tuesday Blitz"]
[Site "Chess.com"]
[Date "2020.06.09"]
[Round "4"]
[White "Maxim_e2e4"]
[Black "BursaBBSatranc"]
[Result "0-1"]
[WhiteElo "2348"]
[BlackElo "2516"]
[TimeControl "180+1"]
[EndTime "9:39:37 PDT"]
[Termination "BursaBBSatranc won on time"]

1. e4 {[%clk 0:03:00.9]} 1... e5 {[%clk 0:02:59.9]} 2. Nf3 {[%clk 0:02:59]} 2...
Nf6 {[%clk 0:03:00.1]} 3. Nxe5 {[%clk 0:02:57.8]} 3... d6 {[%clk 0:03:00.2]} 4.
Nxf7 {[%clk 0:02:57.9]} 4... Kxf7 {[%clk 0:02:59.9]} 5. Nc3 {[%clk 0:02:58]}
5... g6 {[%clk 0:02:55.2]} 6. d4 {[%clk 0:02:54.4]} 6... c5 {[%clk 0:02:34]} 7.
Bc4+ {[%clk 0:02:34.2]} 7... Kg7 {[%clk 0:02:28.5]} 8. dxc5 {[%clk 0:02:32.4]}
8... Nc6 {[%clk 0:02:26.6]} 9. cxd6 {[%clk 0:01:56.8]} 9... Bxd6 {[%clk
0:02:20.3]} 10. Bg5 {[%clk 0:01:40.4]} 10... h6 {[%clk 0:02:15.8]} 11. Bh4
{[%clk 0:01:39.6]} 11... g5 {[%clk 0:02:14]} 12. Bg3 {[%clk 0:01:36.7]} 12...
Bxg3 {[%clk 0:02:14.1]} 13. hxg3 {[%clk 0:01:36.4]} 13... Re8 {[%clk 0:01:43.3]}
14. Qxd8 {[%clk 0:01:11.3]} 14... Rxd8 {[%clk 0:01:15.4]} 15. Rd1 {[%clk
0:00:59.7]} 15... Rxd1+ {[%clk 0:01:11.7]} 16. Kxd1 {[%clk 0:00:59.3]} 16... Ne5
{[%clk 0:00:32.2]} 17. Bb3 {[%clk 0:00:51.6]} 17... Bg4+ {[%clk 0:00:32.2]} 18.
Ke1 {[%clk 0:00:43.5]} 18... Rd8 {[%clk 0:00:24.3]} 19. f3 {[%clk 0:00:42.8]}
19... Bd7 {[%clk 0:00:16.2]} 20. Nd5 {[%clk 0:00:35.5]} 20... Nxd5 {[%clk
0:00:16.1]} 21. Bxd5 {[%clk 0:00:36.3]} 21... Bc6 {[%clk 0:00:16.5]} 22. Bb3
{[%clk 0:00:22]} 22... Bb5 {[%clk 0:00:13.7]} 23. Bd5 {[%clk 0:00:17.3]} 23...
Bc4 {[%clk 0:00:12.3]} 24. Bxc4 {[%clk 0:00:07.9]} 24... Nxc4 {[%clk 0:00:13.2]}
25. b3 {[%clk 0:00:08.3]} 25... Ne3 {[%clk 0:00:12.9]} 26. Ke2 {[%clk
0:00:08.5]} 26... Nxc2 {[%clk 0:00:12.9]} 27. Rc1 {[%clk 0:00:08.5]} 27... Nd4+
{[%clk 0:00:12.5]} 28. Ke3 {[%clk 0:00:08.8]} 28... Rd7 {[%clk 0:00:11.5]} 29.
f4 {[%clk 0:00:03.8]} 29... Kf6 {[%clk 0:00:08.8]} 30. Rc4 {[%clk 0:00:02.6]}
30... Ne6 {[%clk 0:00:07.4]} 31. e5+ {[%clk 0:00:01.9]} 31... Kf5 {[%clk
0:00:05.7]} 32. Kf3 {[%clk 0:00:02.2]} 32... g4+ {[%clk 0:00:05.8]} 33. Ke3
{[%clk 0:00:02.3]} 33... Nc7 {[%clk 0:00:04.5]} 0-1

[Event "*** SCC Grand Prix: Titled Tuesday Blitz"]
[Site "Chess.com"]
[Date "2020.06.09"]
[Round "4"]
[White "freshfoodcompany"]
[Black "Siniauski"]
[Result "0-1"]
[WhiteElo "2208"]
[BlackElo "2507"]
[TimeControl "180+1"]
[EndTime "9:39:37 PDT"]
[Termination "Siniauski won on time"]

1. d4 {[%clk 0:03:00.9]} 1... Nf6 {[%clk 0:02:58.5]} 2. c4 {[%clk 0:03:00.6]}
2... e6 {[%clk 0:02:58.2]} 3. Nc3 {[%clk 0:03:00.2]} 3... Bb4 {[%clk 0:02:57.6]}
4. e3 {[%clk 0:02:59.8]} 4... b6 {[%clk 0:02:57.2]} 5. Ne2 {[%clk 0:02:58.6]}
5... Bb7 {[%clk 0:02:57.1]} 6. a3 {[%clk 0:02:57.9]} 6... Bxc3+ {[%clk
0:02:57.3]} 7. Nxc3 {[%clk 0:02:57.6]} 7... O-O {[%clk 0:02:58]} 8. Bd3 {[%clk
0:02:57.1]} 8... d6 {[%clk 0:02:58.2]} 9. O-O {[%clk 0:02:55.5]} 9... Nbd7
{[%clk 0:02:58.8]} 10. e4 {[%clk 0:02:55]} 10... e5 {[%clk 0:02:59.2]} 11. d5
{[%clk 0:02:55.3]} 11... a5 {[%clk 0:02:59.2]} 12. Rb1 {[%clk 0:02:52.4]} 12...
Qe7 {[%clk 0:02:57.4]} 13. b4 {[%clk 0:02:51.3]} 13... axb4 {[%clk 0:02:56.5]}
14. axb4 {[%clk 0:02:50.8]} 14... Rfc8 {[%clk 0:02:52]} 15. Bb2 {[%clk
0:02:44.9]} 15... c6 {[%clk 0:02:47.8]} 16. Re1 {[%clk 0:02:35.1]} 16... cxd5
{[%clk 0:02:46.8]} 17. Nxd5 {[%clk 0:02:28.8]} 17... Bxd5 {[%clk 0:02:45.7]} 18.
exd5 {[%clk 0:02:27.7]} 18... Ra7 {[%clk 0:02:38]} 19. Qb3 {[%clk 0:02:19.6]}
19... b5 {[%clk 0:02:27.4]} 20. cxb5 {[%clk 0:02:07.4]} 20... Nb6 {[%clk
0:02:27.4]} 21. f4 {[%clk 0:02:00]} 21... Nbxd5 {[%clk 0:02:13.6]} 22. fxe5
{[%clk 0:01:56.6]} 22... dxe5 {[%clk 0:02:13.7]} 23. Bxe5 {[%clk 0:01:51.7]}
23... Qb7 {[%clk 0:02:07]} 24. Rbc1 {[%clk 0:01:38.2]} 24... Rca8 {[%clk
0:01:58.1]} 25. Bc4 {[%clk 0:01:25.7]} 25... Ra3 {[%clk 0:01:44.3]} 26. Qb2
{[%clk 0:01:21.8]} 26... h6 {[%clk 0:01:08.6]} 27. Bb3 {[%clk 0:01:04]} 27...
Qxb5 {[%clk 0:01:01.9]} 28. Rc5 {[%clk 0:00:53.8]} 28... Qxb4 {[%clk 0:00:50.4]}
29. Qf2 {[%clk 0:00:23.1]} 29... Qxb3 {[%clk 0:00:42.1]} 30. Rec1 {[%clk
0:00:17.2]} 30... Qe3 {[%clk 0:00:31.2]} 31. Rc8+ {[%clk 0:00:13.7]} 31... Rxc8
{[%clk 0:00:30.3]} 32. Rxc8+ {[%clk 0:00:13.2]} 32... Kh7 {[%clk 0:00:30.4]} 33.
Qxe3 {[%clk 0:00:12.4]} 33... Nxe3 {[%clk 0:00:31.3]} 34. Bxf6 {[%clk
0:00:12.3]} 34... gxf6 {[%clk 0:00:31.4]} 35. Kf2 {[%clk 0:00:10.2]} 35... Ng4+
{[%clk 0:00:30.6]} 36. Ke2 {[%clk 0:00:08.1]} 36... Ra2+ {[%clk 0:00:30.7]} 37.
Kf3 {[%clk 0:00:07.5]} 37... Ne5+ {[%clk 0:00:30.4]} 38. Kg3 {[%clk 0:00:06.5]}
38... Kg6 {[%clk 0:00:28.1]} 39. Rc3 {[%clk 0:00:06.4]} 39... f5 {[%clk
0:00:27]} 40. Re3 {[%clk 0:00:04.9]} 40... f6 {[%clk 0:00:24.3]} 41. h3 {[%clk
0:00:04.1]} 41... Kg5 {[%clk 0:00:24]} 42. Rc3 {[%clk 0:00:04.1]} 42... f4+
{[%clk 0:00:24]} 43. Kh2 {[%clk 0:00:03.9]} 43... f3 {[%clk 0:00:24.6]} 0-1